[Event "Italian Youth U20 Championship 2023"]
[Site "Brescia"]
[Date "2023.12.03"]
[Round "1.1"]
[White "Vincenti, Leonardo"]
[Black "Pozzari, Simone"]
[Result "0-1"]
[ECO "C01"]
[WhiteElo "2120"]
[BlackElo "2186"]
[Annotator "RC"]
[PlyCount "125"]
[EventDate "2023.12.03"]
[EventType "tourn"]
[EventCountry "ITA"]
[SourceTitle "playchess.com"]
[Source "ChessBase"]
[SourceQuality "1"]
[TimeControl "40/6000+30:20/3000+30:900+30"]

1. e4 {[%emt 0:00:03]} e6 {[%emt 0:00:18]} 2. d4 {[%emt 0:00:07]} d5 {[%emt 0:00:04]} 3. exd5 {[%emt 0:00:57]} exd5 {[%emt 0:00:07]} 4. Nf3 {[%emt 0:00:09]} Nf6 {[%emt 0:00:06]} 5. Bd3 {[%emt 0:02:41]} c5 {[%emt 0:07:23]} 6. Qe2+ {[%emt 0:08:17]} Be7 {[%emt 0:04:28]} 7. dxc5 {[%emt 0:02:03]} O-O {[%emt 0:01:38]} 8. Be3 {[%emt 0:08:03]} Re8 {[%emt 0:03:53]} 9. Bb5 {[%emt 0:05:20]} Bd7 {[%emt 0:01:53]} 10. Bxd7 {[%emt 0:07:26]} Nbxd7 {[%emt 0:01:09]} 11. Nd4 {[%emt 0:03:27]} Bxc5 {[%emt 0:02:09]} 12. c3 {[%emt 0:00:39]} Qb6 {[%emt 0:17:24]} 13. a4 {[%emt 1:07:48]} Ne5 {[%emt 0:15:51]} 14. a5 {[%emt 0:00:00]} Qc7 {[%emt 0:01:27]} 15. Nd2 {[%emt 0:00:00]} Rac8 {[%emt 0:18:03]} 16. N2b3 {[%emt 0:00:00]} Bxd4 {[%emt 0:01:43]} 17. Nxd4 {[%emt 0:00:00]} Qc4 {[%emt 0:03:27]} 18. Qxc4 {[%emt 0:00:00]} Nxc4 {[%emt 0:00:23]} 19. O-O {[%emt 0:00:00]} Nxe3 {[%emt 0:05:35]} 20. fxe3 {[%emt 0:00:00]} Rxe3 {[%emt 0:00:59]} 21. a6 {[%emt 0:00:00]} b6 {[%emt 0:00:35]} 22. Rfe1 {[%emt 0:00:00]} Rxe1+ {[%emt 0:05:35]} 23. Rxe1 {[%emt 0:00:00]} Rc7 {[%emt 0:00:24]} 24. Nb5 {[%emt 0:00:00]} Rd7 {[%emt 0:00:40]} 25. Rc1 {[%emt 0:00:37]} Kf8 {[%emt 0:05:47]} 26. h3 {[%emt 0:03:32]} Ne4 {[%emt 0:03:05]} 27. b4 {[%emt 0:01:40]} Ke7 {[%emt 0:02:45]} 28. c4 {[%emt 0:00:40]} dxc4 {[%emt 0:00:55]} 29. Rxc4 {[%emt 0:00:10]} Nd6 {[%emt 0:01:07]} 30. Nxd6 {[%emt 0:00:32]} Kxd6 {[%emt 0:02:00]} 31. Kf2 {[%emt 0:01:00]} Re7 {[%emt 0:00:10]} 32. Rc8 {[%emt 0:00:22]} f6 {[%emt 0:01:26]} 33. Kf3 {[%emt 0:00:15]} Kd7 {[%emt 0:02:13]} 34. Rh8 {[%emt 0:00:07]} Kc6 {[%emt 0:01:55]} 35. Rxh7 {[%emt 0:00:15]} Kb5 {[%emt 0:00:03]} 36. h4 {[%emt 0:00:29]} Kxb4 {[%emt 0:01:15]} 37. h5 {[%emt 0:00:04]} Rc7 {[%emt 0:00:28]} 38. h6 {[%emt 0:00:39]} Rc3+ {[%emt 0:00:07]} 39. Kf2 {[%emt 0:01:00]} gxh6 {[%emt 0:00:05]} 40. Rxa7 {[%emt 0:00:00]} Kb5 {[%emt 0:00:00]} 41. Rf7 {[%emt 0:04:15]} Kxa6 {[%emt 0:01:55]} 42. Rxf6 {[%emt 0:00:47]} h5 {[%emt 0:00:06]} 43. Rh6 {[%emt 0:06:22]} Rc5 {[%emt 0:00:42]} 44. Ke3 {[%emt 0:01:53]} Kb5 {[%emt 0:02:13]} 45. Kd3 {[%emt 0:00:56]} Rg5 {[%emt 0:01:40]} 46. Kc3 {[%emt 0:03:45]} Kc5 {[%emt 0:01:18]} 47. Kd3 {[%emt 0:01:37]} b5 {[%emt 0:00:13]} 48. Rh8 {[%emt 0:01:01]} Kb4 {[%emt 0:00:30]} 49. Rh7 {[%emt 0:01:39]} Kb3 {[%emt 0:00:14]} 50. Re7 {[%emt 0:02:35]} Rxg2 {[%emt 0:01:22]} 51. Re5 {[%emt 0:00:09]} b4 {[%emt 0:00:03]} 52. Rxh5 {[%emt 0:00:08]} Rc2 {[%emt 0:00:05]} 53. Rb5 {[%emt 0:07:19]} Rc8 {[%emt 0:00:09]} 54. Kd2 {[%emt 0:00:05]} Ka3 {[%emt 0:00:06]} 55. Ra5+ {[%emt 0:01:02]} Kb2 {[%emt 0:00:05]} 56. Kd3 {[%emt 0:00:32]} b3 {[%emt 0:00:08]} 57. Rb5 {[%emt 0:00:18]} Ka2 {[%emt 0:00:06]} 58. Ra5+ {[%emt 0:00:07]} Kb1 {[%emt 0:00:04]} 59. Rb5 {[%emt 0:00:05]} b2 {[%emt 0:00:04]} 60. Rh5 {[%emt 0:00:00]} Ra8 {[%emt 0:00:00]} 61. Rh1+ {[%emt 0:05:10]} Ka2 {[%emt 0:00:24]} 62. Rh2 {[%emt 0:00:20]} Ka1 {[%emt 0:00:06]} 63. Kd4 {[%emt 0:38:33]} 0-1

[Event "Italian Youth U20 Championship 2023"]
[Site "Brescia"]
[Date "2023.12.03"]
[Round "1.2"]
[White "Bettalli, Francesco"]
[Black "Bin-Suhayl, Ieysaa"]
[Result "1-0"]
[ECO "C14"]
[WhiteElo "2274"]
[BlackElo "2248"]
[Annotator "RC"]
[PlyCount "69"]
[EventDate "2023.12.03"]
[EventType "tourn"]
[EventCountry "ITA"]
[SourceTitle "playchess.com"]
[Source "ChessBase"]
[SourceQuality "1"]
[TimeControl "40/6000+30:20/3000+30:900+30"]

1. e4 {[%emt 0:00:19]} e6 {[%emt 0:00:34]} 2. d4 {[%emt 0:00:07]} d5 {[%emt 0:00:03]} 3. Nc3 {[%emt 0:00:19]} Nf6 {[%emt 0:00:20]} 4. Bg5 {[%emt 0:00:07]} Be7 {[%emt 0:00:05]} 5. e5 {[%emt 0:00:07]} Nfd7 {[%emt 0:00:03]} 6. h4 {[%emt 0:00:27]} h6 {[%emt 0:00:14]} 7. Bxe7 {[%emt 0:00:07]} Qxe7 {[%emt 0:00:03]} 8. f4 {[%emt 0:00:08]} a6 {[%emt 0:00:09]} 9. g4 {[%emt 0:00:11]} c5 {[%emt 0:00:44]} 10. Nf3 {[%emt 0:00:06]} Nc6 {[%emt 0:00:20]} 11. Qd2 {[%emt 0:00:36]} b5 {[%emt 0:01:59]} 12. Ne2 {[%emt 0:00:25]} b4 {[%emt 0:04:11]} 13. O-O-O {[%emt 0:01:26]} a5 {[%emt 0:01:21]} 14. dxc5 {[%emt 0:03:00]} Nxc5 {[%emt 0:01:13]} 15. Ned4 {[%emt 0:05:07]} Nxd4 {[%emt 0:05:11]} 16. Nxd4 {[%emt 0:00:53]} Ba6 {[%emt 0:30:44]} 17. Bg2 {[%emt 0:18:08]} Qc7 {[%emt 0:05:04]} 18. Rh3 {[%emt 0:06:48]} Rb8 {[%emt 0:04:54]} 19. f5 {[%emt 0:09:25]} Rb6 {[%emt 0:01:52]} 20. g5 {[%emt 0:03:54]} hxg5 {[%emt 0:25:33]} 21. Qxg5 {[%emt 0:01:35]} Qxe5 {[%emt 0:00:23]} 22. Re3 {[%emt 0:03:04]} Qf6 {[%emt 0:00:05]} 23. Bxd5 {[%emt 0:15:24]} Qxg5 {[%emt 0:21:54]} 24. hxg5 {[%emt 0:00:07]} Ke7 {[%emt 0:03:46]} 25. Nc6+ {[%emt 0:03:17]} Kd6 {[%emt 0:00:10]} 26. Ne5 {[%emt 0:00:10]} Rh4 {[%emt 0:02:01]} 27. Bxe6+ {[%emt 0:01:22]} Kc7 {[%emt 0:00:21]} 28. Bxf7 {[%emt 0:00:22]} Rf4 {[%emt 0:00:22]} 29. Bg6 {[%emt 0:07:39]} Bb7 {[%emt 0:00:48]} 30. Nd3 {[%emt 0:03:14]} Re4 {[%emt 0:00:04]} 31. Rde1 {[%emt 0:01:53]} Rxe3 {[%emt 0:00:39]} 32. Rxe3 {[%emt 0:00:01]} Ne4 {[%emt 0:00:26]} 33. Nf4 {[%emt 0:01:44]} Nxg5 {[%emt 0:00:53]} 34. Ne6+ {[%emt 0:01:35]} Nxe6 {[%emt 0:00:23]} 35. fxe6 {[%emt 0:00:01]} 1-0

[Event "Italian Youth U20 Championship 2023"]
[Site "Brescia"]
[Date "2023.12.03"]
[Round "1.3"]
[White "Perossa, Nicolas"]
[Black "Pegno, Mattia"]
[Result "0-1"]
[ECO "B53"]
[WhiteElo "2330"]
[BlackElo "2155"]
[Annotator "RC"]
[PlyCount "96"]
[EventDate "2023.12.03"]
[EventType "tourn"]
[EventCountry "ITA"]
[SourceTitle "playchess.com"]
[Source "ChessBase"]
[SourceQuality "1"]
[TimeControl "40/6000+30:20/3000+30:900+30"]

1. e4 {[%emt 0:00:01]} c5 {[%emt 0:00:21]} 2. Nf3 {[%emt 0:00:09]} d6 {[%emt 0:00:33]} 3. d4 {[%emt 0:09:35]} cxd4 {[%emt 0:00:16]} 4. Qxd4 {[%emt 0:02:20]} Nc6 {[%emt 0:00:48]} 5. Bb5 {[%emt 0:00:07]} Bd7 {[%emt 0:00:19]} 6. Bxc6 {[%emt 0:00:08]} bxc6 {[%emt 0:00:32]} 7. O-O {[%emt 0:04:00]} e5 {[%emt 0:04:39]} 8. Qd3 {[%emt 0:01:57]} Nf6 {[%emt 0:03:36]} 9. h3 {[%emt 0:22:11]} Be7 {[%emt 0:05:18]} 10. Bg5 {[%emt 0:12:34]} Be6 {[%emt 0:15:46]} 11. c4 {[%emt 0:18:04]} Qc7 {[%emt 0:33:32]} 12. Rd1 {[%emt 0:07:01]} Rd8 {[%emt 0:02:15]} 13. Nc3 {[%emt 0:03:50]} Nh5 {[%emt 0:06:31]} 14. c5 {[%emt 0:05:43]} f6 {[%emt 0:04:29]} 15. Be3 {[%emt 0:00:45]} dxc5 {[%emt 0:09:12]} 16. Qa6 {[%emt 0:01:39]} Kf7 {[%emt 0:00:51]} 17. Nd2 {[%emt 0:16:28]} Qb6 {[%emt 0:03:10]} 18. Qe2 {[%emt 0:00:44]} Nf4 {[%emt 0:02:27]} 19. Bxf4 {[%emt 0:00:01]} exf4 {[%emt 0:00:13]} 20. Nc4 {[%emt 0:01:01]} Qb4 {[%emt 0:01:02]} 21. Na3 {[%emt 0:00:39]} g6 {[%emt 0:03:18]} 22. Rab1 {[%emt 0:01:41]} Bd6 {[%emt 0:04:24]} 23. Qa6 {[%emt 0:00:47]} Qb6 {[%emt 0:00:49]} 24. Qa4 {[%emt 0:00:24]} Ke7 {[%emt 0:03:03]} 25. Re1 {[%emt 0:00:27]} Be5 {[%emt 0:01:14]} 26. Re2 {[%emt 0:00:41]} Rd4 {[%emt 0:02:18]} 27. Qc2 {[%emt 0:00:14]} Rhd8 {[%emt 0:01:36]} 28. Rc1 {[%emt 0:00:33]} Qb4 {[%emt 0:00:46]} 29. f3 {[%emt 0:00:34]} Rd3 {[%emt 0:00:59]} 30. Nab1 {[%emt 0:00:38]} Bd4+ {[%emt 0:00:30]} 31. Kh2 {[%emt 0:00:04]} Be3 {[%emt 0:00:09]} 32. Rce1 {[%emt 0:00:33]} c4 {[%emt 0:00:44]} 33. Nd1 {[%emt 0:00:16]} Bd4 {[%emt 0:00:34]} 34. Nf2 {[%emt 0:00:35]} Re3 {[%emt 0:00:29]} 35. Qc1 {[%emt 0:01:04]} Bxb2 {[%emt 0:00:41]} 36. Qc2 {[%emt 0:00:16]} Be5 {[%emt 0:00:30]} 37. Rc1 {[%emt 0:00:30]} c3 {[%emt 0:00:34]} 38. Nd1 {[%emt 0:00:25]} Rxe2 {[%emt 0:00:27]} 39. Qxe2 {[%emt 0:00:01]} Bc4 {[%emt 0:00:27]} 40. Qf2 {[%emt 0:00:19]} Bd4 {[%emt 0:00:34]} 41. Qh4 {[%emt 0:50:58]} c2 {[%emt 0:06:17]} 42. e5 {[%emt 0:00:00]} Bg1+ {[%emt 0:08:01]} 43. Kxg1 {[%emt 0:00:00]} Rxd1+ {[%emt 0:02:39]} 44. Kh2 {[%emt 0:00:00]} Rxc1 {[%emt 0:01:23]} 45. Qxf6+ {[%emt 0:00:00]} Kd7 {[%emt 0:00:25]} 46. Nc3 {[%emt 0:00:00]} Rh1+ {[%emt 0:00:33]} 47. Kxh1 {[%emt 0:00:00]} c1=Q+ {[%emt 0:00:14]} 48. Kh2 {[%emt 0:00:00]} Qcxc3 {[%emt 0:00:37]} 0-1

[Event "Italian Youth U20 Championship 2023"]
[Site "Brescia"]
[Date "2023.12.03"]
[Round "1.4"]
[White "Cappelletto, Joshuaede"]
[Black "Titze, Leo"]
[Result "1/2-1/2"]
[ECO "A13"]
[WhiteElo "2329"]
[BlackElo "2164"]
[Annotator "RC"]
[PlyCount "35"]
[EventDate "2023.12.03"]
[EventType "tourn"]
[EventCountry "ITA"]
[SourceTitle "playchess.com"]
[Source "ChessBase"]
[SourceQuality "1"]
[TimeControl "40/6000+30:20/3000+30:900+30"]

1. c4 {[%emt 0:00:10]} e6 {[%emt 0:00:20]} 2. g3 {[%emt 0:02:43]} d5 {[%emt 0:02:52]} 3. Bg2 {[%emt 0:02:24]} Nf6 {[%emt 0:02:02]} 4. Nf3 {[%emt 0:00:25]} dxc4 {[%emt 0:03:09]} 5. Qc2 {[%emt 0:06:16]} a6 {[%emt 0:04:22]} 6. a4 {[%emt 0:04:36]} b6 {[%emt 0:14:28]} 7. Qxc4 {[%emt 0:07:32]} Bb7 {[%emt 0:02:10]} 8. O-O {[%emt 0:04:09]} c5 {[%emt 0:04:50]} 9. Nc3 {[%emt 0:05:56]} Nc6 {[%emt 0:09:37]} 10. Rd1 {[%emt 0:01:24]} Be7 {[%emt 0:09:06]} 11. d4 {[%emt 0:11:35]} Na5 {[%emt 0:02:59]} 12. Qd3 {[%emt 0:01:20]} cxd4 {[%emt 0:04:06]} 13. Nxd4 {[%emt 0:00:39]} Bxg2 {[%emt 0:01:14]} 14. Kxg2 {[%emt 0:00:18]} O-O {[%emt 0:01:55]} 15. Bf4 {[%emt 0:03:20]} Nd5 {[%emt 0:07:03]} 16. Nxd5 {[%emt 0:04:12]} Qxd5+ {[%emt 0:00:07]} 17. Nf3 {[%emt 0:01:53]} Qxd3 {[%emt 0:09:07]} 18. Rxd3 {[%emt 0:00:36]} 1/2-1/2

[Event "Italian Youth U20 Championship 2023"]
[Site "Brescia"]
[Date "2023.12.04"]
[Round "2.1"]
[White "Pozzari, Simone"]
[Black "Titze, Leo"]
[Result "1/2-1/2"]
[ECO "B22"]
[WhiteElo "2186"]
[BlackElo "2164"]
[Annotator "RC"]
[PlyCount "116"]
[EventDate "2023.12.03"]
[EventType "tourn"]
[EventCountry "ITA"]
[SourceTitle "playchess.com"]
[Source "ChessBase"]
[SourceQuality "1"]
[TimeControl "40/6000+30:20/3000+30:900+30"]

1. e4 {[%emt 0:01:54]} c5 {[%emt 0:00:09]} 2. Nf3 {[%emt 0:00:12]} e6 {[%emt 0:00:18]} 3. c3 {[%emt 0:09:23]} Nf6 {[%emt 0:01:25]} 4. e5 {[%emt 0:00:07]} Nd5 {[%emt 0:00:22]} 5. d4 {[%emt 0:00:07]} cxd4 {[%emt 0:00:45]} 6. cxd4 {[%emt 0:00:07]} Nc6 {[%emt 0:01:17]} 7. Bc4 {[%emt 0:01:10]} d6 {[%emt 0:00:58]} 8. O-O {[%emt 0:01:08]} Be7 {[%emt 0:00:43]} 9. Qe2 {[%emt 0:00:33]} O-O {[%emt 0:08:26]} 10. a3 {[%emt 0:22:06]} Bd7 {[%emt 0:16:25]} 11. Bd2 {[%emt 0:17:45]} Rc8 {[%emt 0:08:04]} 12. Nc3 {[%emt 0:01:16]} Nxc3 {[%emt 0:09:21]} 13. Bxc3 {[%emt 0:00:15]} d5 {[%emt 0:16:11]} 14. Bd3 {[%emt 0:01:11]} f5 {[%emt 0:04:10]} 15. exf6 {[%emt 0:00:07]} Bxf6 {[%emt 0:00:29]} 16. Ne5 {[%emt 0:04:03]} Bxe5 {[%emt 0:08:48]} 17. dxe5 {[%emt 0:00:13]} Rf7 {[%emt 0:02:15]} 18. f4 {[%emt 0:02:15]} Qb6+ {[%emt 0:03:44]} 19. Kh1 {[%emt 0:01:02]} d4 {[%emt 0:04:28]} 20. Bd2 {[%emt 0:22:47]} Ne7 {[%emt 0:01:10]} 21. b4 {[%emt 0:05:08]} Bc6 {[%emt 0:08:21]} 22. b5 {[%emt 0:03:19]} Bd5 {[%emt 0:00:06]} 23. Rac1 {[%emt 0:00:06]} Rxc1 {[%emt 0:03:10]} 24. Rxc1 {[%emt 0:00:07]} Qd8 {[%emt 0:00:14]} 25. Kg1 {[%emt 0:02:52]} b6 {[%emt 0:05:31]} 26. Qf2 {[%emt 0:02:02]} Nf5 {[%emt 0:01:33]} 27. Bxf5 {[%emt 0:02:31]} Rxf5 {[%emt 0:00:06]} 28. Qxd4 {[%emt 0:01:05]} h5 {[%emt 0:01:59]} 29. a4 {[%emt 0:06:31]} Qe8 {[%emt 0:00:57]} 30. Qc3 {[%emt 0:01:50]} Rf8 {[%emt 0:03:32]} 31. Qd3 {[%emt 0:00:47]} Qe7 {[%emt 0:00:29]} 32. Qg6 {[%emt 0:01:25]} Bb7 {[%emt 0:00:30]} 33. h3 {[%emt 0:00:39]} Rd8 {[%emt 0:00:27]} 34. Be3 {[%emt 0:00:42]} h4 {[%emt 0:00:32]} 35. f5 {[%emt 0:00:42]} exf5 {[%emt 0:00:32]} 36. e6 {[%emt 0:00:25]} Rd6 {[%emt 0:00:30]} 37. Qxf5 {[%emt 0:00:35]} Rxe6 {[%emt 0:00:18]} 38. Bg5 {[%emt 0:00:30]} Qd7 {[%emt 0:00:42]} 39. Rf1 {[%emt 0:00:27]} Be4 {[%emt 0:00:26]} 40. Qf8+ {[%emt 0:00:26]} Kh7 {[%emt 0:00:01]} 41. Qf2 {[%emt 0:02:41]} Kg8 {[%emt 0:06:53]} 42. Qxh4 {[%emt 0:02:37]} Qd4+ {[%emt 0:06:00]} 43. Kh2 {[%emt 0:04:19]} Rg6 {[%emt 0:02:20]} 44. Qf4 {[%emt 0:07:01]} Qd6 {[%emt 0:04:43]} 45. Rf2 {[%emt 0:13:09]} Qxf4+ {[%emt 0:07:08]} 46. Bxf4 {[%emt 0:00:04]} Rf6 {[%emt 0:01:02]} 47. g3 {[%emt 0:00:06]} Bd5 {[%emt 0:08:08]} 48. Re2 {[%emt 0:02:32]} Bb3 {[%emt 0:01:44]} 49. Re4 {[%emt 0:01:00]} Rf8 {[%emt 0:03:40]} 50. g4 {[%emt 0:00:50]} Kf7 {[%emt 0:01:31]} 51. Kg3 {[%emt 0:01:57]} Rd8 {[%emt 0:01:18]} 52. Bg5 {[%emt 0:01:15]} Rd7 {[%emt 0:01:46]} 53. h4 {[%emt 0:01:01]} Bc2 {[%emt 0:00:24]} 54. Rc4 {[%emt 0:00:43]} Bb3 {[%emt 0:00:09]} 55. Rb4 {[%emt 0:00:42]} Bc2 {[%emt 0:00:14]} 56. Kf4 {[%emt 0:00:17]} Ke6 {[%emt 0:00:28]} 57. Rc4 {[%emt 0:00:31]} Bb3 {[%emt 0:01:07]} 58. Re4+ {[%emt 0:00:17]} Kd5 {[%emt 0:03:10]} 1/2-1/2

[Event "Italian Youth U20 Championship 2023"]
[Site "Brescia"]
[Date "2023.12.04"]
[Round "2.2"]
[White "Pegno, Mattia"]
[Black "Cappelletto, Joshuaede"]
[Result "1/2-1/2"]
[ECO "A35"]
[WhiteElo "2155"]
[BlackElo "2329"]
[Annotator "RC"]
[PlyCount "50"]
[EventDate "2023.12.03"]
[EventType "tourn"]
[EventCountry "ITA"]
[SourceTitle "playchess.com"]
[Source "ChessBase"]
[SourceQuality "1"]
[TimeControl "40/6000+30:20/3000+30:900+30"]

1. c4 {[%emt 0:00:05]} c5 {[%emt 0:03:11]} 2. Nc3 {[%emt 0:00:20]} Nc6 {[%emt 0:00:05]} 3. Nf3 {[%emt 0:00:58]} g6 {[%emt 0:00:11]} 4. e3 {[%emt 0:00:40]} Nf6 {[%emt 0:00:14]} 5. d4 {[%emt 0:00:23]} cxd4 {[%emt 0:00:05]} 6. exd4 {[%emt 0:00:07]} d5 {[%emt 0:00:03]} 7. cxd5 {[%emt 0:00:38]} Nxd5 {[%emt 0:00:06]} 8. Qb3 {[%emt 0:00:43]} Nxc3 {[%emt 0:01:17]} 9. Bc4 {[%emt 0:00:46]} Nd5 {[%emt 0:00:22]} 10. Bxd5 {[%emt 0:00:09]} e6 {[%emt 1:39:56]} 11. Bxc6+ {[%emt 0:03:07]} bxc6 {[%emt 0:00:00]} 12. O-O {[%emt 0:04:40]} Qd5 {[%emt 0:00:00]} 13. Bf4 {[%emt 0:14:51]} f6 {[%emt 0:00:00]} 14. Rac1 {[%emt 0:16:38]} g5 {[%emt 0:00:00]} 15. Bg3 {[%emt 0:15:19]} Be7 {[%emt 0:00:00]} 16. Nd2 {[%emt 0:12:19]} Kf7 {[%emt 0:00:00]} 17. Qxd5 {[%emt 0:05:15]} cxd5 {[%emt 0:00:00]} 18. Rc7 {[%emt 0:00:19]} Rd8 {[%emt 0:00:00]} 19. Rfc1 {[%emt 0:00:46]} Ke8 {[%emt 0:00:00]} 20. Nb3 {[%emt 0:01:53]} Bd7 {[%emt 0:00:00]} 21. Na5 {[%emt 0:11:49]} Rdc8 {[%emt 0:00:00]} 22. Nb7 {[%emt 0:05:03]} Rxc7 {[%emt 0:00:00]} 23. Rxc7 {[%emt 0:00:12]} Rc8 {[%emt 0:00:00]} 24. Nd6+ {[%emt 0:07:04]} Bxd6 {[%emt 0:00:00]} 25. Rxc8+ {[%emt 0:00:35]} Bxc8 {[%emt 0:00:00]} 1/2-1/2

[Event "Italian Youth U20 Championship 2023"]
[Site "Brescia"]
[Date "2023.12.04"]
[Round "2.3"]
[White "Bin-Suhayl, Ieysaa"]
[Black "Perossa, Nicolas"]
[Result "0-1"]
[ECO "E83"]
[WhiteElo "2248"]
[BlackElo "2330"]
[Annotator "RC"]
[PlyCount "100"]
[EventDate "2023.12.03"]
[EventType "tourn"]
[EventCountry "ITA"]
[SourceTitle "playchess.com"]
[Source "ChessBase"]
[SourceQuality "1"]
[TimeControl "40/6000+30:20/3000+30:900+30"]

1. d4 {[%emt 0:10:39]} d6 {[%emt 0:01:07]} 2. e4 {[%emt 0:02:22]} Nf6 {[%emt 0:00:06]} 3. f3 {[%emt 0:04:38]} g6 {[%emt 0:06:21]} 4. c4 {[%emt 0:07:55]} Bg7 {[%emt 0:08:47]} 5. Nc3 {[%emt 0:00:13]} O-O {[%emt 0:00:09]} 6. Be3 {[%emt 0:00:07]} Nc6 {[%emt 0:00:28]} 7. Nge2 {[%emt 0:00:20]} a6 {[%emt 0:00:06]} 8. Qd2 {[%emt 0:00:23]} Bd7 {[%emt 0:01:59]} 9. Nc1 {[%emt 0:06:01]} e5 {[%emt 0:01:42]} 10. d5 {[%emt 0:00:10]} Nd4 {[%emt 0:00:08]} 11. N1e2 {[%emt 0:00:24]} Nxe2 {[%emt 0:04:54]} 12. Bxe2 {[%emt 0:00:23]} Nh5 {[%emt 0:04:18]} 13. O-O-O {[%emt 0:03:32]} Qe7 {[%emt 0:05:42]} 14. a3 {[%emt 0:06:46]} b5 {[%emt 0:06:57]} 15. cxb5 {[%emt 0:02:12]} axb5 {[%emt 0:00:19]} 16. Bxb5 {[%emt 0:01:17]} Rfb8 {[%emt 0:13:06]} 17. Bxd7 {[%emt 0:18:04]} Qxd7 {[%emt 0:00:02]} 18. Na2 {[%emt 0:00:40]} c5 {[%emt 0:04:25]} 19. dxc6 {[%emt 0:05:08]} Qxc6+ {[%emt 0:00:07]} 20. Qc2 {[%emt 0:00:34]} Qd7 {[%emt 0:06:19]} 21. g3 {[%emt 0:05:12]} Qe6 {[%emt 0:13:09]} 22. Nc3 {[%emt 0:01:55]} Rb3 {[%emt 0:01:49]} 23. Rd2 {[%emt 0:06:55]} Rab8 {[%emt 0:10:10]} 24. Qd3 {[%emt 0:01:15]} Bf8 {[%emt 0:00:45]} 25. Rc2 {[%emt 0:02:24]} Nf6 {[%emt 0:03:32]} 26. g4 {[%emt 0:08:58]} Qc8 {[%emt 0:01:13]} 27. h4 {[%emt 0:02:19]} Qb7 {[%emt 0:00:40]} 28. Qd2 {[%emt 0:00:39]} d5 {[%emt 0:00:56]} 29. exd5 {[%emt 0:03:16]} Bxa3 {[%emt 0:00:22]} 30. Rh2 {[%emt 0:00:10]} Bb4 {[%emt 0:03:42]} 31. Kd1 {[%emt 0:07:15]} Bxc3 {[%emt 0:01:01]} 32. bxc3 {[%emt 0:00:38]} Nxd5 {[%emt 0:00:26]} 33. Ke2 {[%emt 0:00:54]} Qb5+ {[%emt 0:02:48]} 34. Kf2 {[%emt 0:00:27]} Rc8 {[%emt 0:00:22]} 35. Rh1 {[%emt 0:01:37]} Rcxc3 {[%emt 0:07:13]} 36. Rxc3 {[%emt 0:00:38]} Rxc3 {[%emt 0:00:01]} 37. Re1 {[%emt 0:01:19]} Rxe3 {[%emt 0:02:24]} 38. Rxe3 {[%emt 0:00:04]} Qc5 {[%emt 0:00:05]} 39. Ke2 {[%emt 0:00:34]} Qxe3+ {[%emt 0:00:34]} 40. Qxe3 {[%emt 0:00:02]} Nxe3 {[%emt 0:00:14]} 41. Kxe3 {[%emt 0:50:07]} f5 {[%emt 0:51:27]} 42. Kd3 {[%emt 0:00:00]} fxg4 {[%emt 0:00:00]} 43. fxg4 {[%emt 0:00:00]} Kf7 {[%emt 0:00:00]} 44. Ke3 {[%emt 0:00:00]} Ke6 {[%emt 0:00:00]} 45. Ke4 {[%emt 0:00:00]} h6 {[%emt 0:00:00]} 46. Kf3 {[%emt 0:00:00]} Kd5 {[%emt 0:00:00]} 47. Ke3 {[%emt 0:00:00]} g5 {[%emt 0:00:00]} 48. hxg5 {[%emt 0:00:00]} hxg5 {[%emt 0:00:00]} 49. Kd3 {[%emt 0:00:00]} e4+ {[%emt 0:00:00]} 50. Ke2 {[%emt 0:00:00]} Ke5 {[%emt 0:05:35]} 0-1

[Event "Italian Youth U20 Championship 2023"]
[Site "Brescia"]
[Date "2023.12.04"]
[Round "2.4"]
[White "Vincenti, Leonardo"]
[Black "Bettalli, Francesco"]
[Result "0-1"]
[ECO "B50"]
[WhiteElo "2120"]
[BlackElo "2274"]
[Annotator "RC"]
[PlyCount "54"]
[EventDate "2023.12.03"]
[EventType "tourn"]
[EventCountry "ITA"]
[SourceTitle "playchess.com"]
[Source "ChessBase"]
[SourceQuality "1"]
[TimeControl "40/6000+30:20/3000+30:900+30"]

1. e4 {[%emt 0:00:01]} c5 {[%emt 0:02:54]} 2. Nf3 {[%emt 0:00:05]} d6 {[%emt 0:00:16]} 3. c3 {[%emt 0:00:11]} Nf6 {[%emt 0:00:47]} 4. h3 {[%emt 0:00:04]} Nc6 {[%emt 0:03:08]} 5. Bd3 {[%emt 0:00:40]} e5 {[%emt 0:14:52]} 6. Bc2 {[%emt 0:01:29]} d5 {[%emt 0:01:36]} 7. exd5 {[%emt 0:00:21]} Qxd5 {[%emt 0:01:00]} 8. d3 {[%emt 0:07:55]} Bf5 {[%emt 0:06:17]} 9. O-O {[%emt 0:21:48]} O-O-O {[%emt 0:02:29]} 10. Ng5 {[%emt 0:00:55]} Qd7 {[%emt 0:11:17]} 11. Qf3 {[%emt 0:11:13]} Bg6 {[%emt 0:00:43]} 12. Na3 {[%emt 0:16:39]} Nd5 {[%emt 0:04:04]} 13. Nc4 {[%emt 0:05:06]} h6 {[%emt 0:22:54]} 14. Ne4 {[%emt 0:00:37]} f5 {[%emt 0:00:09]} 15. Ned6+ {[%emt 0:04:46]} Bxd6 {[%emt 0:00:05]} 16. Qxd5 {[%emt 0:00:06]} Bc7 {[%emt 0:10:22]} 17. Qxd7+ {[%emt 0:07:56]} Rxd7 {[%emt 0:00:05]} 18. f4 {[%emt 0:01:08]} Re8 {[%emt 0:02:02]} 19. fxe5 {[%emt 0:15:45]} Nxe5 {[%emt 0:00:32]} 20. Ba4 {[%emt 0:00:49]} Nc6 {[%emt 0:00:03]} 21. Bf4 {[%emt 0:06:20]} Rxd3 {[%emt 0:02:43]} 22. Bc2 {[%emt 0:01:13]} Rd5 {[%emt 0:01:15]} 23. Ne3 {[%emt 0:00:57]} Rd2 {[%emt 0:02:27]} 24. Bxf5+ {[%emt 0:03:17]} Bxf5 {[%emt 0:00:10]} 25. Nxf5 {[%emt 0:00:05]} Rxb2 {[%emt 0:01:05]} 26. Rae1 {[%emt 0:02:49]} Rxe1 {[%emt 0:00:10]} 27. Rxe1 {[%emt 0:00:11]} Bxf4 {[%emt 0:00:01]} 0-1